Cogmind - Beta 12 @@@ ROGUE MODE // 2023.11.10 @ 11:06:02 Player: OgamiTringle Result: Destroyed by H-55 Commando with Assault Rifle Performance ------------- Evolutions (3) 1500 Regions Visited (4) 800 Robots Destroyed (43) 215 Value Destroyed (1459) 1459 Prototype IDs (2) 40 Alien Tech Used (0) 0 Bonus (0) 0 TOTAL SCORE: 4014 Bonus ------- None Cogmind --------- Core Integrity 0/700 Matter 164/300 Energy 100/100 System Corruption 4% Temperature Cool (0) Movement Core (200) Ox3 Location -7/Factory Parts ------- > --- POWER (1) -------- (None) > --- PROPULSION (3) --- (None) > --- UTILITY (7) ------ Medium Storage Unit Advanced Visual Processing Unit Signal Interpreter Terrain Scan Processor > --- WEAPON (2) ------- (None) > --- INVENTORY (10) --- Improved Cooling System Energy Filter Improved EM Shotgun Small Laser Beam Rifle Peak State ------------ > --- POWER ------------ Deuterium Engine > --- PROPULSION ------- Armored Treads Armored Treads Advanced Treads > --- UTILITY ---------- Improved Cooling System Medium Storage Unit Advanced Visual Processing Unit Sensor Array Signal Interpreter Terrain Scan Processor Core Shielding > --- WEAPON ----------- Advanced Beam Cannon Advanced Assault Cannon > --- INVENTORY -------- Improved Ion Engine Advanced Treads Improved Cooling System Energy Filter Improved Medium Armor Plating Improved EM Shotgun Small Laser Beam Rifle Mini Grenade Launcher [Rating: 34] Favorites ----------- Power Light Ion Engine Engine Light Ion Engine Power Core Light Nuclear Core Propulsion Armored Treads Treads Armored Treads Leg Carbon-fiber Leg Hover Unit Hover Unit Utility Signal Interpreter Device Improved Cooling System Storage Medium Storage Unit Processor Signal Interpreter Protection Core Shielding Weapon Improved EM Shotgun Energy Gun Improved EM Shotgun Energy Cannon Advanced Beam Cannon Ballistic Gun Light Assault Rifle Ballistic Cannon Advanced Assault Cannon Launcher Mini Grenade Launcher Build | -11 -10 -9 -8 -7 ------- Run | Jun Mat Mat Mat Fac Slots Evolved 6 | . . 2 2 2 Power . | . . . . . Propulsion 1 | . . . . 1 Utility 5 | . . 2 2 1 Weapon . | . . . . . Parts Attached 41 | 5 5 8 13 10 Power 4 | 1 . . 1 2 Engine 3 | 1 . . . 2 Core 1 | . . . 1 . Reactor . | . . . . . Propulsion 13 | 1 4 1 4 3 Treads 8 | 1 1 . 4 2 Leg 2 | . 1 . . 1 Wheel . | . . . . . Hover 3 | . 2 1 . . Flight . | . . . . . Utility 13 | 1 1 3 6 2 Device 6 | . . 1 4 1 Storage 2 | 1 . 1 . . Processor 3 | . 1 . 2 . Hackware . | . . . . . Protection 2 | . . 1 . 1 Artifact . | . . . . . Weapon 11 | 2 . 4 2 3 Energy Gun 6 | 2 . 3 1 . Energy Cannon 2 | . . . 1 1 Ballistic Gun 1 | . . 1 . . Ballistic Cannon 1 | . . . . 1 Launcher 1 | . . . . 1 Special Weapon . | . . . . . Impact Weapon . | . . . . . Slashing Weapon . | . . . . . Piercing Weapon . | . . . . . Special Melee Weapon . | . . . . . Unidentified Prototypes 1 | . . 1 . . Corrupted Parts 1 | . 1 . . . System Corruption 1 | . 1 . . . Parts Lost 19 | . . 3 . 16 Power 3 | . . . . 3 Propulsion 6 | . . 1 . 5 Utility 4 | . . . . 4 Weapon 6 | . . 2 . 4 Highest Loss Streak 9 | . . 3 . 9 To Critical Strikes . | . . . . . Average Slot Usage (%) 95 | . 88 94 99 96 Engine 8 | . 14 11 6 4 Core 1 | . . . 2 1 Treads 13 | . 14 . 17 21 Hover 6 | . 6 21 . . Device 9 | . . 6 11 14 Storage 9 | . 14 11 9 7 Processor 18 | . 10 11 24 23 Protection 7 | . . 11 9 7 Energy Gun 14 | . 28 17 15 6 Energy Cannon 2 | . . . 3 4 Ballistic Gun 1 | . . 3 . . Naked Turns . | . . . . . Heaviest Build 36 | 12 12 21 24 36 Greatest Support 62 | 20 40 12 40 62 Greatest Overweight (x) 3 | . . 1 1 3 Average Overweight (x) . | . . . . . Largest Inventory Capacity 10 | 8 8 10 10 10 Average Capacity 9 | 7 8 8 10 10 Most Carried 10 | 7 8 10 10 9 Average Carried 7 | 4 6 7 9 8 Final Capacity 10 | 8 8 10 10 10 Final Carried 10 | 5 8 10 10 5 Class Distribution -------------------- 68% | Mutant 31% | Skirmisher Dominant Class ---------------- Mutant | -10/Materials Mutant | -9/Materials Mutant | -8/Materials Skirmisher | -7/Factory Resources | -11 -10 -9 -8 -7 ----------- Run | Jun Mat Mat Mat Fac Matter Collected 602 | 164 145 98 130 65 Remotely . | . . . . . Salvage Created 1281 | . 193 389 335 364 Parts 90 | . 18 35 17 20 Haulers Intercepted . | . . . . . Recyclers Shooed . | . . . . . Parts Field Recycled . | . . . . . Retrieved Matter . | . . . . . Parts Self-Destructed . | . . . . . Prevented . | . . . . . Kills | -11 -10 -9 -8 -7 ------- Run | Jun Mat Mat Mat Fac Combat Hostiles Destroyed 33 | . 5 9 5 14 Guns 15 | . 3 8 3 1 Cannons 4 | . . . 1 3 AOE 13 | . 2 1 . 10 Classes Destroyed 9 | . 4 1 . 4 Recycler 1 | . . . . 1 Operator 2 | . 1 1 . . Watcher 7 | . 3 2 1 1 Swarmer 13 | . 3 4 . 6 Grunt 7 | . 2 2 3 . Protector 2 | . . . . 2 Sentry 6 | . . 3 2 1 Specialist 4 | . . . . 4 Hunter 1 | . . . . 1 Best Kill Streak 11 | . 3 2 3 11 Combat Bots Only 10 | . 3 2 3 10 Max Kills in Single Turn 5 | . 1 2 1 5 Gunslinging 1 | . . 1 . . Exploded 4 | . 1 1 . 4 Melee . | . . . . . Uniques/NPCs Destroyed . | . . . . . Combat | -11 -10 -9 -8 -7 -------- Run | Jun Mat Mat Mat Fac Damage Taken 3388 | . 122 287 260 2719 Core 903 | . 54 92 48 709 Absorbed by Shields . | . . . . . Redirected to Shielding 51 | . . 18 9 24 Core Remaining (%) 86 | 100 78 77 91 . Volleys Fired 98 | . 22 33 11 32 Largest 2 | . 2 2 2 2 Hottest 116 | . 80 90 113 116 Shots Fired 182 | . 45 61 22 54 Gun 132 | . 45 61 17 9 Cannon 45 | . . . 5 40 Launcher 5 | . . . . 5 Special . | . . . . . Kinetic 37 | . . 16 . 21 Thermal 40 | . . 16 5 19 Explosive 5 | . . . . 5 Electromagnetic 100 | . 45 29 17 9 Robot Hit Streak 18 | . 3 12 18 7 Robot Miss Streak 6 | . 5 6 1 5 Penetration Max . | . . . . . Secondary Targets 2 | . . 1 1 . Max Gunslinging Chain 1 | . . 1 1 . Shots Hit Robots 117 | . 21 42 20 34 Core Hits 80 | . 9 20 13 38 Critical Kills . | . . . . . Critical Parts Destroyed . | . . . . . Critical Strikes 1 | . . . . 1 Blast 1 | . . . . 1 Melee Attacks . | . . . . . Impact . | . . . . . Slashing . | . . . . . Piercing . | . . . . . Sneak Attacks . | . . . . . Combat Hostiles . | . . . . . Follow-up Attacks . | . . . . . Damage Inflicted 4109 | . 658 569 484 2398 Guns 1338 | . 352 531 368 87 Cannons 621 | . . . 60 561 Explosions 2150 | . 306 38 56 1750 Melee . | . . . . . Ramming . | . . . . . Kinetic 447 | . . 94 . 353 Thermal 1277 | . 306 155 116 700 Explosive 1258 | . . . . 1258 Electromagnetic 1127 | . 352 320 368 87 Impact . | . . . . . Slashing . | . . . . . Piercing . | . . . . . Highest Corruption 5 | . 5 . 4 4 Average Corruption 2 | . 2 . 3 3 Corruption Purged . | . . . . . Corruption Blocked . | . . . . . Effects 7 | . 5 . 1 1 Message Errors 2 | . . . 1 1 Matter Fused 2 | . 2 . . . Heat Flow Errors 1 | . 1 . . . Data Loss (major) 1 | . 1 . . . Misfires 1 | . 1 . . . Overload Shots . | . . . . . Overflow Damage 397 | . 167 . . 230 Projectiles . | . . . . . Explosions 397 | . 167 . . 230 Melee . | . . . . . Knockbacks 4 | . . . . 4 Impact . | . . . . . Kinetic 4 | . . . . 4 Secondary . | . . . . . Self-Inflicted Damage 506 | . . . 44 462 Shots 8 | . . . 1 7 Rammed . | . . . . . Targets Rammed . | . . . . . Kicked . | . . . . . Crushed . | . . . . . Highest Temperature 198 | . 198 45 . 36 Average Temperature 49 | . 69 17 . 17 Received Heat Transfer 285 | . 30 39 99 117 Siege Activations . | . . . . . Robots Corrupted 1 | . . . 1 . Combat Hostiles 1 | . . . 1 . Parts Fried 8 | . 2 . 6 . Impact Corruptions . | . . . . . Robots Melted . | . . . . . Combat Hostiles . | . . . . . Parts Melted 1 | . . . . 1 Heat Transferred 1556 | . 250 325 211 770 Parts Sabotaged . | . . . . . Parts Stolen . | . . . . . Parts Stripped . | . . . . . Power Chain Reactions 6 | . 3 1 1 1 Missiles Intercepted . | . . . . . Alert | -11 -10 -9 -8 -7 ------- Run | Jun Mat Mat Mat Fac Peak Influence 275 | . 272 259 275 261 Initial 114 | . . 114 73 40 Average 95 | . 103 131 137 52 Maximum Alert Level 1 | . 1 1 1 1 Low Security (%) 86 | 100 69 79 82 98 Level 1 13 | . 30 20 17 1 Level 2 . | . . . . . Level 3 . | . . . . . Level 4 . | . . . . . Level 5 . | . . . . . High Security . | . . . . . Max Security . | . . . . . Squads Dispatched 6 | . 1 3 . 2 Investigation 1 | . . 1 . . Extermination 1 | . . . . 1 Reinforcement 4 | . 1 2 . 1 Assault . | . . . . . Garrison . | . . . . . Intercept . | . . . . . Searches Triggered . | . . . . . Construction Impeded 1 | . . . . 1 Haulers Reinforced . | . . . . . Active Scanning Responses . | . . . . . Cargo Convoy Interrupts 1 | . . . . 1 Stealth | -11 -10 -9 -8 -7 --------- Run | Jun Mat Mat Mat Fac Distress Signals 2 | . . 2 . . Communications Jammed . | . . . . . Distress Signals . | . . . . . Times Spotted 67 | . 10 22 7 28 Peak Tracking Total 18 | . 3 5 3 18 Tactical Retreats 4 | . . 4 . . Traps | -11 -10 -9 -8 -7 ------- Run | Jun Mat Mat Mat Fac Traps Triggered 7 | . 3 2 2 . Indirectly . | . . . . . Trap Hack Attempts . | . . . . . Triggered . | . . . . . Disarmed . | . . . . . Reprogrammed . | . . . . . Reused . | . . . . . Traps Extracted . | . . . . . Installed . | . . . . . Triggered . | . . . . . Machines | -11 -10 -9 -8 -7 ---------- Run | Jun Mat Mat Mat Fac Machines Disabled 13 | . 3 . . 10 Max in Single Turn 4 | . 2 . . 4 Machines Repaired . | . . . . . Machines Sabotaged . | . . . . . Overloaded Fab Kills . | . . . . . Hacking | -11 -10 -9 -8 -7 --------- Run | Jun Mat Mat Mat Fac Machines Accessed 7 | . 3 3 . 1 Terminals 7 | . 3 3 . 1 Fabricators . | . . . . . Repair Stations . | . . . . . Recycling Units . | . . . . . Scanalyzers . | . . . . . Garrison Access . | . . . . . Total Hacks 13 | . 6 5 . 2 Successful 7 | . 3 2 . 2 Failed 6 | . 3 3 . . Catastrophic 3 | . 1 2 . . Database Lockouts . | . . . . . Manual . | . . . . . Terminals 13 | . 6 5 . 2 Fabricators . | . . . . . Repair Stations . | . . . . . Recycling Units . | . . . . . Scanalyzers . | . . . . . Garrison Access . | . . . . . Terminal Hacks 7 | . 3 2 . 2 Alert Level 2 | . 2 . . . Unreport Threat 1 | . . 1 . . Locate Traps 2 | . . 1 . 1 Dispatch Records 2 | . 1 . . 1 Fabricator Hacks . | . . . . . Repair Station Hacks . | . . . . . Recycling Unit Hacks . | . . . . . Scanalyzer . | . . . . . Garrison Access Hacks . | . . . . . Unauthorized Hacks . | . . . . . Terminals . | . . . . . Fabricators . | . . . . . Repair Stations . | . . . . . Recycling Units . | . . . . . Scanalyzers . | . . . . . Garrison Access . | . . . . . Data Cores Recovered . | . . . . . Used . | . . . . . Hacking Detections 4 | . 1 2 . 1 Full Trace Events 1 | . 1 . . . Feedback Events . | . . . . . Feedback Blocked . | . . . . . Robot Schematics Acquired . | . . . . . Robots Built . | . . . . . Authchips . | . . . . . Time . | . . . . . Total Robot Build Rating . | . . . . . Part Schematics Acquired . | . . . . . Parts Built . | . . . . . Authchips . | . . . . . Time . | . . . . . Total Part Build Rating . | . . . . . Parts Repaired . | . . . . . Time . | . . . . . Parts Recycled . | . . . . . Recycled Matter . | . . . . . Retrieved Matter . | . . . . . Retrieved Components . | . . . . . Parts Scanalyzed . | . . . . . Part Schematics Acquired . | . . . . . Parts Damaged . | . . . . . Bothacking | -11 -10 -9 -8 -7 ------------ Run | Jun Mat Mat Mat Fac Used RIF Installer . | . . . . . Robots Hacked . | . . . . . Non-combat . | . . . . . Combat . | . . . . . Robot Hacks Applied . | . . . . . Relay Couplers Released . | . . . . . Fabnet Peak Effective % . | . . . . . Robots Rewired . | . . . . . Allies Hacked . | . . . . . Hacks Repelled . | . . . . . Allies | -11 -10 -9 -8 -7 -------- Run | Jun Mat Mat Mat Fac Total Allies . | . . . . . Largest Group . | . . . . . Highest-Rated Group . | . . . . . Highest-Rated Ally . | . . . . . Total Orders . | . . . . . Ally Attacks . | . . . . . Total Damage . | . . . . . Kills . | . . . . . Allies Corrupted . | . . . . . Allies Melted . | . . . . . Intel | -11 -10 -9 -8 -7 ------- Run | Jun Mat Mat Mat Fac Robot Analysis Total . | . . . . . Derelict Logs Recovered . | . . . . . Drone Launches . | . . . . . Drone Recoveries . | . . . . . Exploration | -11 -10 -9 -8 -7 ------------- Run | Jun Mat Mat Mat Fac Turns Passed 2449 | 82 379 621 484 883 Spaces Moved 1194 | 44 238 396 223 293 Core 7 | 2 . . . 5 Treads 688 | 42 145 . 213 288 Legs . | . . . . . Wheels . | . . . . . Hover 499 | . 93 396 10 . Flight . | . . . . . Fastest Speed 50 | 50 56 56 116 161 Average Speed 133 | 155 119 97 162 166 Slowest Speed 225 | 160 160 120 170 225 Overloaded Moves . | . . . . . Propulsion Burnouts . | . . . . . Robots Hopped . | . . . . . Cave-ins Triggered . | . . . . . Exploration Rate (%) 23 | 5 49 31 19 13 Regions Visited 4 Branch Regions . Pre-discovered Areas . | . . . . . Known Exits Taken 3 | . 1 1 1 . Unknown Exits Taken 1 | 1 . . . . Scrap Searched . | . . . . . Spaces Dug . | . . . . . Terrain Destroyed 117 | . 43 2 4 68 Melee . | . . . . . Projectile 2 | . . . . 2 AOE 115 | . 43 2 4 66 Terrain Rammed . | . . . . . Walls Destroyed . | . . . . . Machines Disabled . | . . . . . Actions | -11 -10 -9 -8 -7 --------- Run | Jun Mat Mat Mat Fac Total 1881 | 58 288 574 326 635 Wait 487 | . 14 120 57 296 Move 1190 | 43 237 395 222 293 Hop . | . . . . . Pick Up 43 | 10 7 12 10 4 Fast Attach 1 | . . . 1 . Attach 27 | 5 3 5 5 9 Detach 3 | . 1 . 2 . Swap 13 | . 2 3 7 1 Drop 19 | . 2 6 11 . Fire 98 | . 22 33 11 32 Melee . | . . . . . Ram . | . . . . . Kick . | . . . . . Crush . | . . . . . Escape Stasis . | . . . . . Rewire . | . . . . . Trap . | . . . . . Miscellaneous . | . . . . . Route ------- -11/Junkyard -10/Materials -9/Materials -8/Materials -7/Factory History --------- Turn | Location | Event 15 | -11/Junkyard | Discovered new exit (range 15) 83 | -11/Junkyard | Entered Materials 307 | -10/Materials | Build established: Mutant 450 | -10/Materials | Discovered new exit (range 15) 460 | -10/Materials | Identified exit to Materials 462 | -10/Materials | Entered another Materials area 462 | -9/Materials | Evolved 2 slots: Utility x2 609 | -9/Materials | Lost 3 parts (1n2w) 1061 | -9/Materials | Discovered new exit (range 16) 1082 | -9/Materials | Identified exit to Materials 1083 | -9/Materials | Entered another Materials area 1083 | -8/Materials | Evolved 2 slots: Utility x2 1562 | -8/Materials | Discovered new exit (range 4) 1565 | -8/Materials | Identified exit to Factory 1567 | -8/Materials | Entered Factory 1567 | -7/Factory | Evolved 2 slots: Propulsion x1, Utility x1 2151 | -7/Factory | Build established: Skirmisher 2405 | -7/Factory | Lost 4 parts (1p2n1u) 2428 | -7/Factory | Cargo convoy interrupted 2441 | -7/Factory | Core integrity fell below 50% 2448 | -7/Factory | Core integrity fell below 20% 2450 | -7/Factory | Destroyed by H-55 Commando with Assault Rifle Last Messages --------------- 02439_ X-62 Marksman destroyed. 02439_ I-36 Angel destroyed. 02440_ K-01 Serf collects debris. 02440_ Mni. Grenade Launcher destroyed. 02441_ SNS/SFPQ&T1J8EOG WI1D 02442_ Penetrated by Slug. 02443_ K-01 Serf collects debris. 02444_ R-06 Scavenger collects Minigun. 02444_ Penetrated by Slug. 02445_ K-01 Serf collects debris. 02447_ Slug penetrates Earth. 02447_ Penetrated by Slug. 02449_ K-01 Serf collects debris. 02449_ U-05 Engineer lays Concrete. 02449_ R-06 Scavenger collects Imp. Deuterium Engine. 02449_ Penetrated by Slug. 02449_ K-01 Serf collects debris. 02450_ U-05 Engineer destroyed. Map ----- +----------------------------------------------------+ | ?????????????????????????????????????????????????? | | ?????????????????????????????????????????????????? | | ?????????????????????????????????????????????????? | | ?????????????????????????????????????????????????? | | ?????????????????????????????????????????????????? | | ?????????????????????????????????????????????????? | | ??????????????????????? ???? ???????????????????? | | ????????????????????? ####+###???????????? ???? | | ???????????????????# ???????????? "?? | | ???????????????????# ???????????? "?? | | ???????????????????# #???????????? "?? | | ??????????? ??????+ #######?????? """ | | ??????????? ?????# ^ # ????? """ | | ?????????? ????# k kx # !! """???? | | ?????????? ???# !h % !! """ #?? | | ?????????? ??# % r % !! """ ??? | | ??????????? ?# p ???? | | ???????????? # k % x """???? | | ?????????????? # = = """???? " | | ???????????????? ; "?????? " | | ?????????????????#;; u ???????? F | | ???????###########; #+######## " | | ??????? u % * | | ????????? k | | ???????????? """ k u #??? | | ???????????? "T" @ =%! #??? | | ??????" pu #??? | | ??????" ;; ;;############+#+###+ | | ??????? ### # #???## | | ??????? ????# # ## # # ##???#" | | ???????? ???????####?##### #????#" | | ???????? ????????????????????##????# | | ???????????????????????????????????## | | ???????????????????????????????????# | | ???????????????????????????????????# | | ???????????????????????????????????# | | ???????????????????????????????????# | | ???????????????????????????????????# | | ???????????????????????????????????##" | | ????????????????????????????????????#" | | ????????????????????????????????????###"""" """"## | | ??????????????????????????????????????###########? | | ?????????????????????????????????????????????????? | | ?????????????????????????????????????????????????? | | ?????????????????????????????????????????????????? | | ?????????????????????????????????????????????????? | | ?????????????????????????????????????????????????? | | ?????????????????????????????????????????????????? | | ?????????????????????????????????????????????????? | | ?????????????????????????????????????????????????? | +----------------------------------------------------+ Best States ------------- Heat Dissipation 61 Energy Generation 14 Energy Capacity 275 Matter Stores 300 Matter Capacity 300 Sight Range 20 Robot Scan Range 14 Terrain Scan Density 85 Armor Coverage 225 Core Shielding 20 Evasion (%) 53 Recoil Reduction 3 Item Schematics ----------------- None Robot Schematics ------------------ None Fabricated ------------ Nothing Alien Tech Used ----------------- None Achievements -------------- Power Corrupts Challenges ------------ None Game ------ Seed AblativeKineticFlamer Manual? 0 Play Time 00:30:56 Cumulative 9.0 hours Start 2023.11.10 @ 10:14:15 End 2023.11.10 @ 11:06:02 Sessions 1 Manual Loads 0 Difficulty Rogue Special Mode None Game No. 19 Rogue 19 Adventurer 0 Explorer 0 Win Type - Total 0 Types 0/0/0/0/0/0/0/0/0 Lore% 10 Gallery% 14 Achievement% 15 Wizard Run 0 Options --------- ASCII 0 Keyboard 0 Movement Mouse Keybinds 0 Fullscreen 2 Font 24/Crisp Map View 76x50 Tactical HUD 1 Map Filters NONE Filters NONE Steam 1 RUN: be597aeb-4122-4dcd-87d1-87cd6bb1de94